Cogmind - Beta 13 *** ADVENTURER MODE // 2024.05.01 @ 15:52:09 Player: Ghosty Result: Self-destructed Performance ------------- Evolutions (1) 500 Regions Visited (5) 1000 Robots Destroyed (17) 85 Value Destroyed (401) 401 Prototype IDs (1) 20 Alien Tech Used (0) 0 Bonus (799) 799 TOTAL SCORE: 2805 Bonus ------- Follower Combat Kills 199 Met Imprinter 300 Was Imprinted 300 Cogmind --------- Core Integrity 198/400 Matter 300/300 Energy 100/100 System Corruption 0% Temperature Cool (39) Movement Core (100) Ox1 Location -6/Proximity Caves Parts ------- > --- POWER (1) -------- (None) > --- PROPULSION (4) --- Armored Treads > --- UTILITY (2) ------ 0b10 Decoder Chip [Generic] Hacking Drone Bay (1/1) > --- WEAPON (2) ------- Ripper > --- INVENTORY (5) ---- Armored Treads Small Storage Unit Bomb Factory No. 2 Light Assault Rifle Peak State ------------ > --- POWER ------------ Ion Engine > --- PROPULSION ------- Armored Treads Wheel Wheel Wheel > --- UTILITY ---------- 0b10 Decoder Chip [Generic] Hacking Drone Bay > --- WEAPON ----------- Ripper > --- INVENTORY -------- Small Storage Unit Bomb Factory No. 2 Light Assault Rifle [Rating: 26] Favorites ----------- Power Light Ion Engine Engine Light Ion Engine Propulsion Wheel Treads Armored Treads Wheel Wheel Utility 0b10 Decoder Chip [Generic] Device Hacking Drone Bay Storage Small Storage Unit Processor 0b10 Decoder Chip [Generic] Weapon Ripper Energy Gun Medium Laser Ballistic Gun Light Assault Rifle Launcher Rocket Launcher Slashing Weapon Ripper Build | -11 -10 -9 -9 -7 -6 ------- Run | Yrd Mat Mat Min Zio Pro Slots Evolved 2 | . . 2 . . . Power . | . . . . . . Propulsion 2 | . . 2 . . . Utility . | . . . . . . Weapon . | . . . . . . Parts Attached 18 | 6 3 1 3 2 3 Power 3 | 1 . . 1 . 1 Engine 3 | 1 . . 1 . 1 Core . | . . . . . . Reactor . | . . . . . . Propulsion 6 | 2 1 1 . . 2 Treads 1 | . . . . . 1 Leg . | . . . . . . Wheel 5 | 2 1 1 . . 1 Hover . | . . . . . . Flight . | . . . . . . Utility 4 | 1 1 . . 2 . Device 2 | . 1 . . 1 . Storage 1 | 1 . . . . . Processor 1 | . . . . 1 . Hackware . | . . . . . . Protection . | . . . . . . Artifact . | . . . . . . Weapon 5 | 2 1 . 2 . . Energy Gun 1 | . 1 . . . . Energy Cannon . | . . . . . . Ballistic Gun 2 | 2 . . . . . Ballistic Cannon . | . . . . . . Launcher 1 | . . . 1 . . Special Weapon . | . . . . . . Impact Weapon . | . . . . . . Slashing Weapon 1 | . . . 1 . . Piercing Weapon . | . . . . . . Special Melee Weapon . | . . . . . . Unidentified Prototypes 1 | . . . . 1 . Parts Lost 8 | . 1 . . . 7 Power 2 | . . . . . 2 Propulsion 5 | . 1 . . . 4 Utility . | . . . . . . Weapon 1 | . . . . . 1 Highest Loss Streak 3 | . 1 . . . 3 To Critical Strikes . | . . . . . . Average Slot Usage (%) 81 | . 88 88 88 88 67 Engine 11 | . 14 11 11 11 10 Treads 3 | . . . . . 9 Wheel 26 | . 24 33 33 33 13 Device 9 | . 7 11 11 9 11 Storage 4 | . 14 11 11 3 . Processor 7 | . . . . 9 11 Energy Gun 1 | . 14 11 5 . . Ballistic Gun 1 | . 14 11 . . . Launcher 6 | . . . 10 11 . Slashing Weapon 9 | . . . 5 11 11 Naked Turns . | . . . . . . Heaviest Build 18 | 12 14 14 18 16 13 Greatest Support 30 | 20 20 30 30 30 30 Greatest Overweight (x) 3 | 1 1 . . 3 3 Average Overweight (x) . | . . . . . . Largest Inventory Capacity 8 | 8 8 8 8 8 5 Average Capacity 6 | 7 8 8 8 6 5 Most Carried 8 | 6 8 8 8 8 5 Average Carried 6 | 3 7 7 7 6 4 Final Capacity 8 | 8 8 8 8 5 5 Final Carried 8 | 6 8 8 8 5 5 Class Distribution -------------------- 86% | Mutant 13% | Scavenger-Mutant Dominant Class ---------------- Mutant | -10/Materials Mutant | -9/Materials Mutant | -9/Mines Mutant | -7/Zion Mutant | -6/Proximity Caves Resources | -11 -10 -9 -9 -7 -6 ----------- Run | Yrd Mat Mat Min Zio Pro Matter Collected 493 | 215 87 11 64 34 82 Remotely . | . . . . . . Salvage Created 432 | . 181 54 134 . 63 Parts 32 | . 15 4 13 . . Haulers Intercepted . | . . . . . . Recyclers Shooed 1 | . 1 . . . . Parts Field Recycled . | . . . . . . Retrieved Matter . | . . . . . . Parts Self-Destructed 4 | . . . . . 4 Prevented 1 | . . . . . 1 Kills | -11 -10 -9 -9 -7 -6 ------- Run | Yrd Mat Mat Min Zio Pro Combat Hostiles Destroyed 13 | . 5 1 6 . 1 Melee 2 | . . . 1 . 1 Guns 6 | . 5 1 . . . AOE 5 | . . . 5 . . Classes Destroyed 5 | . 4 1 . . . Worker 3 | . 2 . 1 . . Watcher 1 | . 1 . . . . Swarmer 5 | . 3 . 2 . . Grunt 7 | . 2 . 4 . 1 Sentry 1 | . . 1 . . . Best Kill Streak 6 | . 6 1 4 . 1 Combat Bots Only 3 | . 3 1 3 . 1 Max Kills in Single Turn 2 | . 2 1 1 . 1 Gunslinging 1 | . 1 . . . . Exploded 1 | . . . 1 . . Melee 1 | . . . 1 . 1 Uniques/NPCs Destroyed . | . . . . . . Combat | -11 -10 -9 -9 -7 -6 -------- Run | Yrd Mat Mat Min Zio Pro Hostile Shots Fired 133 | . 22 2 28 . 81 Missed 50 | . 7 2 8 . 33 Damage Taken 1025 | . 118 . 196 . 711 Core 215 | . 13 . 51 . 151 Absorbed by Shields . | . . . . . . Ignored by Resistances 298 | . 37 . 60 . 201 Core Remaining (%) 97 | 100 94 . . . . Volleys Fired 33 | . 22 1 10 . . Largest 2 | . 2 2 1 . . Hottest 70 | . 70 70 33 . . Shots Fired 56 | . 44 2 10 . . Gun 46 | . 44 2 . . . Cannon . | . . . . . . Launcher 10 | . . . 10 . . Special . | . . . . . . Kinetic 23 | . 22 1 . . . Thermal 23 | . 22 1 . . . Explosive 10 | . . . 10 . . Electromagnetic . | . . . . . . Robot Hit Streak 10 | . 10 2 5 . . Robot Miss Streak 2 | . 2 . . . . Penetration Max . | . . . . . . Secondary Targets 2 | . 2 . . . . Max Gunslinging Chain 1 | . 1 . . . . Shots Hit Robots 44 | . 32 2 7 . 3 Core Hits 27 | . 15 2 9 . 1 Critical Kills . | . . . . . . Critical Parts Destroyed . | . . . . . . Critical Strikes 1 | . 1 . . . . Burn 1 | . 1 . . . . Melee Attacks 10 | . . . 4 . 6 Impact . | . . . . . . Slashing 10 | . . . 4 . 6 Piercing . | . . . . . . Sneak Attacks . | . . . . . . Combat Hostiles . | . . . . . . Follow-up Attacks . | . . . . . . Damage Inflicted 1159 | . 364 20 675 . 100 Guns 378 | . 358 20 . . . Cannons . | . . . . . . Explosions 531 | . . . 531 . . Melee 244 | . . . 144 . 100 Ramming 6 | . 6 . . . . Kinetic 150 | . 143 7 . . . Thermal 228 | . 215 13 . . . Explosive 531 | . . . 531 . . Electromagnetic . | . . . . . . Impact . | . . . . . . Slashing 244 | . . . 144 . 100 Piercing . | . . . . . . Highest Corruption . | . . . . . . Average Corruption . | . . . . . . Corruption Purged . | . . . . . . Corruption Blocked . | . . . . . . Overload Shots . | . . . . . . Overflow Damage 33 | . . . 33 . . Projectiles . | . . . . . . Explosions 33 | . . . 33 . . Melee . | . . . . . . Knockbacks . | . . . . . . Impact . | . . . . . . Kinetic . | . . . . . . Secondary . | . . . . . . Self-Inflicted Damage 31 | . 3 . 28 . . Shots 1 | . . . 1 . . Rammed 1 | . 1 . . . . Targets Rammed 1 | . 1 . . . . Kicked . | . . . . . . Crushed . | . . . . . . Highest Temperature 128 | . 128 4 . . 11 Average Temperature 30 | . 31 3 . . 7 Received Heat Transfer 483 | . 54 . 93 . 336 Siege Activations . | . . . . . . Robots Corrupted . | . . . . . . Combat Hostiles . | . . . . . . Parts Fried . | . . . . . . Impact Corruptions . | . . . . . . Robots Melted . | . . . . . . Combat Hostiles . | . . . . . . Parts Melted 1 | . 1 . . . . Heat Transferred 740 | . 703 37 . . . Parts Sabotaged . | . . . . . . Parts Stolen . | . . . . . . Parts Stripped . | . . . . . . Power Chain Reactions . | . . . . . . Alert | -11 -10 -9 -9 -7 -6 ------- Run | Yrd Mat Mat Min Zio Pro Peak Influence 303 | . 154 100 303 . . Initial 55 | . . 55 33 . . Average 83 | . 64 81 112 . . Maximum Alert Level 1 | . . . 1 . . Low Security (%) 85 | 100 100 100 71 . . Level 1 14 | . . . 28 . . Level 2 . | . . . . . . Level 3 . | . . . . . . Level 4 . | . . . . . . Level 5 . | . . . . . . High Security . | . . . . . . Max Security . | . . . . . . Squads Dispatched 1 | . . . . . 1 Investigation . | . . . . . . Extermination . | . . . . . . Reinforcement . | . . . . . . Assault 1 | . . . . . 1 Garrison . | . . . . . . Intercept . | . . . . . . Searches Triggered . | . . . . . . Construction Impeded . | . . . . . . Haulers Reinforced . | . . . . . . Active Scanning Responses . | . . . . . . Cargo Convoy Interrupts . | . . . . . . Stealth | -11 -10 -9 -9 -7 -6 --------- Run | Yrd Mat Mat Min Zio Pro Distress Signals 2 | . 1 1 . . . Communications Jammed . | . . . . . . Distress Signals . | . . . . . . Times Spotted 35 | . 8 2 9 . 16 Peak Tracking Total 6 | . 4 2 3 . 6 Tactical Retreats 4 | . . . . . 4 Traps | -11 -10 -9 -9 -7 -6 ------- Run | Yrd Mat Mat Min Zio Pro Traps Triggered . | . . . . . . Indirectly . | . . . . . . Trap Hack Attempts . | . . . . . . Triggered . | . . . . . . Disarmed . | . . . . . . Reprogrammed . | . . . . . . Reused . | . . . . . . Traps Extracted . | . . . . . . Installed . | . . . . . . Triggered . | . . . . . . Machines | -11 -10 -9 -9 -7 -6 ---------- Run | Yrd Mat Mat Min Zio Pro Machines Disabled 2 | . . . 2 . . Max in Single Turn 1 | . . . 1 . . Machines Repaired . | . . . . . . Machines Dismantled . | . . . . . . Machines Sabotaged . | . . . . . . Overloaded Fab Kills . | . . . . . . Hacking | -11 -10 -9 -9 -7 -6 --------- Run | Yrd Mat Mat Min Zio Pro Machines Accessed 3 | . 2 . . 1 . Terminals 2 | . 2 . . . . Fabricators . | . . . . . . Repair Stations . | . . . . . . Recycling Units . | . . . . . . Scanalyzers . | . . . . . . Garrison Access . | . . . . . . Total Hacks 9 | . 6 . . 3 . Successful 5 | . 2 . . 3 . Failed 4 | . 4 . . . . Catastrophic 1 | . 1 . . . . Database Lockouts . | . . . . . . Manual 4 | . 2 . . 2 . Terminals 6 | . 6 . . . . Fabricators . | . . . . . . Repair Stations . | . . . . . . Recycling Units . | . . . . . . Scanalyzers . | . . . . . . Garrison Access . | . . . . . . Terminal Hacks 5 | . 2 . . 3 . Part Schematic 3 | . . . . 3 . Branch Access Points 1 | . 1 . . . . Alert Level 1 | . 1 . . . . Fabricator Hacks . | . . . . . . Repair Station Hacks . | . . . . . . Recycling Unit Hacks . | . . . . . . Scanalyzer . | . . . . . . Garrison Access Hacks . | . . . . . . Unauthorized Hacks . | . . . . . . Terminals . | . . . . . . Fabricators . | . . . . . . Repair Stations . | . . . . . . Recycling Units . | . . . . . . Scanalyzers . | . . . . . . Garrison Access . | . . . . . . Data Cores Recovered . | . . . . . . Used . | . . . . . . Hacking Detections 1 | . 1 . . . . Full Trace Events 1 | . 1 . . . . Feedback Events . | . . . . . . Feedback Blocked . | . . . . . . Robot Schematics Acquired 3 | . . . . 3 . Robots Built . | . . . . . . Authchips . | . . . . . . Time . | . . . . . . Total Robot Build Rating . | . . . . . . Part Schematics Acquired 18 | . . . . 18 . Parts Built . | . . . . . . Authchips . | . . . . . . Time . | . . . . . . Total Part Build Rating . | . . . . . . Parts Repaired . | . . . . . . Time . | . . . . . . Parts Recycled . | . . . . . . Recycled Matter . | . . . . . . Retrieved Matter . | . . . . . . Retrieved Components . | . . . . . . Parts Scanalyzed . | . . . . . . Part Schematics Acquired . | . . . . . . Parts Damaged . | . . . . . . Bothacking | -11 -10 -9 -9 -7 -6 ------------ Run | Yrd Mat Mat Min Zio Pro Used RIF Installer . | . . . . . . Robots Hacked . | . . . . . . Non-combat . | . . . . . . Combat . | . . . . . . Robot Hacks Applied . | . . . . . . Relay Couplers Released . | . . . . . . Fabnet Peak Effective % . | . . . . . . Robots Rewired . | . . . . . . Allies Hacked . | . . . . . . Hacks Repelled . | . . . . . . Allies | -11 -10 -9 -9 -7 -6 -------- Run | Yrd Mat Mat Min Zio Pro Total Allies 7 | . . . 3 4 . Largest Group 7 | . . . 3 7 6 Highest-Rated Group 195 | . . . 40 195 187 Highest-Rated Ally 39 | . . . 16 39 39 Total Orders . | . . . . . . Ally Attacks 34 | . . . 11 . 23 Total Damage 612 | . . . 90 . 522 Kills 8 | . . . 2 . 6 Allies Corrupted . | . . . . . . Allies Melted . | . . . . . . Intel | -11 -10 -9 -9 -7 -6 ------- Run | Yrd Mat Mat Min Zio Pro Robot Analysis Total . | . . . . . . Derelict Logs Recovered 4 | . . . 1 3 . Drone Launches 1 | . . . . 1 . Drone Recoveries 1 | . . . . . 1 Exploration | -11 -10 -9 -9 -7 -6 ------------- Run | Yrd Mat Mat Min Zio Pro Turns Passed 3356 | 64 276 53 383 1540 1040 Spaces Moved 2343 | 61 240 60 432 1302 248 Core 483 | 1 . . . 391 91 Treads 1 | . . . . . 1 Legs . | . . . . . . Wheels 1859 | 60 240 60 432 911 156 Hover . | . . . . . . Flight . | . . . . . . Fastest Speed 50 | 50 80 80 80 80 80 Average Speed 103 | 80 82 80 80 116 109 Slowest Speed 200 | 95 95 80 80 200 200 Overloaded Moves . | . . . . . . Propulsion Burnouts . | . . . . . . Robots Hopped . | . . . . . . Cave-ins Triggered . | . . . . . . Exploration Rate (%) 40 | 3 29 10 71 90 37 Regions Visited 5 Branch Regions 3 Pre-discovered Areas 4 | . . . . 4 . Known Exits Taken . | . . . . . . Unknown Exits Taken 5 | 1 1 1 1 1 . Scrap Searched 1 | . . . . 1 . Spaces Dug 3 | . . . . . 3 Terrain Destroyed 81 | . . . 78 . 3 Melee 3 | . . . . . 3 Projectile . | . . . . . . AOE 78 | . . . 78 . . Terrain Rammed . | . . . . . . Walls Destroyed . | . . . . . . Machines Disabled . | . . . . . . Actions | -11 -10 -9 -9 -7 -6 --------- Run | Yrd Mat Mat Min Zio Pro Total 3210 | 72 282 62 454 1332 1008 Wait 774 | . . . 1 24 749 Move 2338 | 60 239 59 431 1301 248 Hop . | . . . . . . Pick Up 20 | 6 9 1 1 1 2 Fast Attach 13 | 6 2 . 2 2 1 Attach 4 | . 1 1 . . 2 Detach 1 | . 1 . . . . Swap 1 | . . . 1 . . Drop 15 | . 7 . 4 4 . Fire 33 | . 22 1 10 . . Melee 10 | . . . 4 . 6 Ram 1 | . 1 . . . . Kick . | . . . . . . Crush . | . . . . . . Escape Stasis . | . . . . . . Rewire . | . . . . . . Trap . | . . . . . . Miscellaneous . | . . . . . . Route ------- -11/Scrapyard -10/Materials (discovered 2 exits: [*Mat] / Min) -9/Materials -9/Mines -7/Zion (discovered 2 exits: Dee / [*Pro]) -6/Proximity Caves History --------- Turn | Location | Event 20 | -11/Scrapyard | Discovered new exit (range 16) 65 | -11/Scrapyard | Entered Materials 301 | -10/Materials | Discovered new exit (range 16) 313 | -10/Materials | Build established: Mutant 313 | -10/Materials | Identified exit to Mines 341 | -10/Materials | Entered another Materials area 341 | -9/Materials | Evolved 2 slots: Propulsion x2 389 | -9/Materials | Discovered new exit (range 7) 394 | -9/Materials | Entered Mines 422 | -9/Mines | Received a Rocket Launcher from a helpful Derelict 464 | -9/Mines | Assisted by bots powering up and referring to "LRC-V3" 526 | -9/Mines | Learned Materials stockpile data 580 | -9/Mines | A weapon hastily lodged in a ceiling crevice suddenly fell to the ground 748 | -9/Mines | A Derelict revealed a hidden shortcut to a safe place 777 | -9/Mines | Entered Zion 777 | -7/Zion | Accompanied by 3 allies 934 | -7/Zion | Learned location of Armory (-4) 962 | -7/Zion | Build established: Scavenger-Mutant 1132 | -7/Zion | Imprinted 1134 | -7/Zion | Declared Zion's savior 1304 | -7/Zion | Learned location of Data Miner (-6) 1320 | -7/Zion | Given the Hacking Drone Bay 1320 | -7/Zion | Found Prototype Device 1320 | -7/Zion | Identified Hacking Drone Bay 1341 | -7/Zion | Build established: Mutant 1366 | -7/Zion | Learned Factory emergency access door positions 1525 | -7/Zion | Found Prototype Device 1726 | -7/Zion | Learned location of Warlord (-5) 2037 | -7/Zion | Received a hallucinogenic algorithm 2147 | -7/Zion | Discovered new exit (range 16) 2209 | -7/Zion | Identified exit to Deep Caves 2317 | -7/Zion | Entered Proximity Caves 2317 | -6/Proximity Caves | Accompanied by 8 allies 2366 | -6/Proximity Caves | Attracted the attention of an 0b10 outpost 2426 | -6/Proximity Caves | Lost 5 allies 2478 | -6/Proximity Caves | Spotted B-75 Beast 2518 | -6/Proximity Caves | Lost 3 parts (3n) 3306 | -6/Proximity Caves | Spotter reported a threat 3357 | -6/Proximity Caves | Self-destructed Last Messages --------------- 02395_ 0Q-U9V(M) destroyed. 02396_ Critical hit (Burn: +37). 02401_ Lgt. Ion Engine destroyed. 02402_ Acquired 10 matter. 02402_ G-50 Soldier IFF system glitched. 02402_ Rocket Launcher destroyed. 02404_ Hacking Drone retrieved by Hacking Drone Bay. 02407_ G-50 Soldier destroyed. 02412_ Acquired Arm. Treads. 02415_ Acquired 10 matter. 02419_ Acquired Arm. Treads. 02454_ Wheel destroyed. 02493_ Acquired Com. Wheel. 02569_ The unstable cave ceiling collapses. 03298_ Com. Wheel destroyed. 03304_ N-01 Spotter is scanning... 03306_ N-01 Spotter sends a signal. 03306_ ALERT: Unidentified potential threat approaching Complex 0b10. 03313_ Ion Engine destroyed. 03347_ Critical hit (Burn: +37). Map ----- +----------------------------------------------------+ | | | | | | | ?????????????????????????????????????????????????? | | ?????????????????????????????????????????????????? | | ?????????????????????????????????????????????????? | | ?????????????????????????????????????????????????? | | ?????????????????????????????????????????????????? | | ?????????????????????????????????????????????????? | | ?????????????????????????????????????????????????? | | ?????????????????????????????????????????????????? | | ?????????????????????????????????????????????????? | | ?????????????????????????????????????????????????? | | ?????????????????????????????????????????????????? | | ?????????????????????????????????????????????????? | | ?????????????????????????????????????????????????? | | ?????????????????????????????????????????????????? | | ????????????????????????????####?????????????????? | | ?????????########??#######??# ##???????????????? | | ?????????# ## #??# ## ##??????????????? | | ??????????# #### # #??????????????? | | ??????????# # # # #??????????????? | | ???????????# # ## g ##??????????????? | | ????????###?# # ###gg m ##???????????????? | | ????????# ### ### g # #????????????????? | | ????????# # # ## @ # ##????????????????? | | ?????????# # #### #?????????????????? | | ?????????#### #??## ## ##?????????????????? | | ##??????????## #???########??????????????????? | | #???????????## #?????????????????????????????? | | ##???????????# ####??????????????????????????? | | #???????????## # ##?????????????????????????? | | #????????????# #?????????????????????????? | | ##??????####### ## #?????????????????????????? | | #?????### # ### #?????????????????????????? | | ##???## # # # ##????????????????????????? | | ##?## # #????????????????????????? | | ### ## #????????????????????????? | | # ## ##????????????????????????? | | # ## ##?????????????????????????? | | ## ##??????????????????????????? | | # # ######???????????????????????????? | | # # ##????????????????????????????????? | | #### #?????????????????????????????????? | | # #?# #?????????????????????????????????? | | ##?????????????????????????????????? | | ##??????????????????????????????????? | | #???????????????????????????????????? | | #???????????????????????????????????? | | # ????????????????????????????????????? | +----------------------------------------------------+ Best States ------------- Heat Dissipation 38 Energy Generation 10 Energy Capacity 250 Matter Stores 300 Matter Capacity 300 Sight Range 16 Terrain Scan Density 10 Resistance: KI 20 Resistance: TH 20 Resistance: EX 20 Resistance: EM 20 Resistance: I 20 Resistance: S 20 Resistance: P 20 Evasion (%) 44 Offensive Hacking 10 Item Schematics ----------------- Great Axe | -7/Zion | Archive Mak. Hover Unit | -7/Zion | Archive Imp. Dynamic Insulation System | -7/Zion | Archive Imp. Salvage Targeting Computer | -7/Zion | Archive Imp. Trap Scanner | -7/Zion | Archive Energy Filter | -7/Zion | Archive Energy Well | -7/Zion | Archive Phase Cannon | -7/Zion | Archive Spear | -7/Zion | Archive Lyr. Heavy Armor Plating | -7/Zion | Archive Power Maul | -7/Zion | Archive Hvy. Flak Cannon | -7/Zion | Archive Adv. ECM Suite | -7/Zion | Archive Magnetic Acceleration Cannon | -7/Zion | Archive Mak. Axe | -7/Zion | Archive Hvy. Riot Gun | -7/Zion | Free Battle Cannon | -7/Zion | Free Flamer | -7/Zion | Free Robot Schematics ------------------ K-01 Serf | -7/Zion | Archive L-31 Rogue | -7/Zion | Archive S-27 Virus | -7/Zion | Archive Fabricated ------------ Nothing Alien Tech Used ----------------- None Achievements -------------- Robot Respite The One Challenges ------------ None Game ------ Seed ScrapPhysicsScreen Manual? 0 Play Time 00:30:49 Cumulative 12.0 hours Start 2024.05.01 @ 15:21:44 End 2024.05.01 @ 15:52:09 Sessions 1 Manual Loads 0 Difficulty Adventurer Special Mode None Game No. 16 Rogue 9 Adventurer 6 Explorer 1 Win Type - Total 0 Types 0/0/0/0/0/0/0/0/0 Lore% 17 Gallery% 18 Achievement% 18 Wizard Run 0 Options --------- Layout 0 ASCII 1 Keyboard 1 Movement Arrows Keybinds 0 Fullscreen 2 Font 24/Smallcaps Map View 76x50 Zoom Use 0% Tactical HUD 1 Map Filters NONE Filters NONE Steam 1 RUN: 9c7bd405-c21e-43ab-8596-a19e65a2dae6